[Event "Titled Tuesday Blitz January 31 Early 2023"]
[White "Moksh Amit Doshi"]
[Black "Andreikin, Dmitry"]
[WhiteFideId "25064967"]
[BlackFideId "4158814"]
[WhiteElo "2401"]
[BlackElo "2729"]
[Result "0-1"]
[Round "01"]
[TimeControl "180+2"]
[Date "2023.01.31"]
[WhiteClock "0:00:21"]
[BlackClock "0:01:40"]

1. d4 {[%clk 0:02:54]}  Nf6 {[%clk 0:02:59]} 2. c4 {[%clk 0:02:53]}  e6 {[%clk 0:02:59]} 3. Nf3 {[%clk 0:02:52]}  b6 {[%clk 0:02:57]} 4. g3 {[%clk 0:02:52]}  Bb7 {[%clk 0:02:57]} 5. Bg2 {[%clk 0:02:52]}  Bb4+ {[%clk 0:02:57]} 6. Bd2 {[%clk 0:02:44]}  a5 {[%clk 0:02:57]} 7. O-O {[%clk 0:02:43]}  O-O {[%clk 0:02:57]} 8. Bf4 {[%clk 0:02:41]}  Be7 {[%clk 0:02:56]} 9. Nc3 {[%clk 0:02:41]}  Ne4 {[%clk 0:02:56]} 10. Nb5 {[%clk 0:02:41]}  Na6 {[%clk 0:02:55]} 11. Qc2 {[%clk 0:02:12]}  Nf6 {[%clk 0:02:55]} 12. a3 {[%clk 0:01:59]}  Rc8 {[%clk 0:02:49]} 13. Rfe1 {[%clk 0:01:56]}  Be4 {[%clk 0:02:48]} 14. Qd2 {[%clk 0:01:56]}  d6 {[%clk 0:02:44]} 15. Nc3 {[%clk 0:01:55]}  Bb7 {[%clk 0:02:42]} 16. e4 {[%clk 0:01:55]}  c5 {[%clk 0:02:41]} 17. d5 {[%clk 0:01:42]}  e5 {[%clk 0:02:41]} 18. Bg5 {[%clk 0:01:42]}  h6 {[%clk 0:02:37]} 19. Bxf6 {[%clk 0:01:41]}  Bxf6 {[%clk 0:02:38]} 20. h4 {[%clk 0:01:39]}  Rb8 {[%clk 0:02:34]} 21. Bh3 {[%clk 0:01:31]}  Nc7 {[%clk 0:02:34]} 22. Kg2 {[%clk 0:01:27]}  Ba6 {[%clk 0:02:34]} 23. b3 {[%clk 0:01:21]}  b5 {[%clk 0:02:34]} 24. cxb5 {[%clk 0:01:12]}  Nxb5 {[%clk 0:02:35]} 25. Nxb5 {[%clk 0:01:12]}  Rxb5 {[%clk 0:02:36]} 26. Rab1 {[%clk 0:01:12]}  Qb6 {[%clk 0:02:36]} 27. Qc3 {[%clk 0:01:11]}  Rb8 {[%clk 0:02:36]} 28. Nd2 {[%clk 0:01:12]}  Qc7 {[%clk 0:02:30]} 29. Rb2 {[%clk 0:01:12]}  g6 {[%clk 0:02:26]} 30. Kg1 {[%clk 0:01:12]}  Bg7 {[%clk 0:02:26]} 31. Bf1 {[%clk 0:01:11]}  R5b6 {[%clk 0:02:24]} 32. Bxa6 {[%clk 0:01:12]}  Rxa6 {[%clk 0:02:25]} 33. Nc4 {[%clk 0:01:11]}  f5 {[%clk 0:02:24]} 34. a4 {[%clk 0:01:08]}  Rb4 {[%clk 0:02:20]} 35. Qd3 {[%clk 0:01:06]}  Ra8 {[%clk 0:02:18]} 36. exf5 {[%clk 0:01:06]}  e4 {[%clk 0:02:17]} 37. Qxe4 {[%clk 0:01:02]}  Bxb2 {[%clk 0:02:08]} 38. Qe6+ {[%clk 0:00:48]}  Qf7 {[%clk 0:02:08]} 39. Nxb2 {[%clk 0:00:48]}  Qxe6 {[%clk 0:02:01]} 40. fxe6 {[%clk 0:00:48]}  Kf8 {[%clk 0:02:00]} 41. e7+ {[%clk 0:00:43]}  Ke8 {[%clk 0:02:00]} 42. Nc4 {[%clk 0:00:43]}  Kd7 {[%clk 0:01:58]} 43. Re6 {[%clk 0:00:42]}  Re8 {[%clk 0:01:56]} 44. Nxa5 {[%clk 0:00:36]}  Rd4 {[%clk 0:01:51]} 45. Rxg6 {[%clk 0:00:30]}  Rxd5 {[%clk 0:01:50]} 46. Rxh6 {[%clk 0:00:29]}  Rxe7 {[%clk 0:01:50]} 47. Nc4 {[%clk 0:00:30]}  Rd3 {[%clk 0:01:49]} 48. Kg2 {[%clk 0:00:31]}  d5 {[%clk 0:01:47]} 49. Ne3 {[%clk 0:00:23]}  Rd2 {[%clk 0:01:41]} 50. Rb6 {[%clk 0:00:21]}  Rxe3 {[%clk 0:01:40]} 0-1


[Site "https://www.chess.com"]

[Event "Titled Tuesday Blitz January 31 Early 2023"]
[White "Kalogeris, Ioannis"]
[Black "Deac, Bogdan-Daniel"]
[WhiteFideId "4239563"]
[BlackFideId "1226380"]
[WhiteElo "2423"]
[BlackElo "2700"]
[Result "1-0"]
[Round "01"]
[TimeControl "180+2"]
[Date "2023.01.31"]
[WhiteClock "0:00:13"]
[BlackClock "0:00:06"]

1. e4 {[%clk 0:03:00]}  g6 {[%clk 0:02:54]} 2. d4 {[%clk 0:03:00]}  Bg7 {[%clk 0:02:54]} 3. Nf3 {[%clk 0:03:00]}  d6 {[%clk 0:02:53]} 4. h3 {[%clk 0:03:00]}  c5 {[%clk 0:02:52]} 5. d5 {[%clk 0:02:42]}  Nf6 {[%clk 0:02:51]} 6. Nc3 {[%clk 0:02:41]}  O-O {[%clk 0:02:49]} 7. Be2 {[%clk 0:02:38]}  b5 {[%clk 0:02:48]} 8. e5 {[%clk 0:02:23]}  dxe5 {[%clk 0:02:43]} 9. Bxb5 {[%clk 0:02:23]}  Bb7 {[%clk 0:02:40]} 10. Be3 {[%clk 0:01:54]}  Nxd5 {[%clk 0:02:22]} 11. Nxd5 {[%clk 0:01:54]}  Bxd5 {[%clk 0:02:11]} 12. O-O {[%clk 0:01:43]}  a6 {[%clk 0:01:58]} 13. Ba4 {[%clk 0:01:38]}  c4 {[%clk 0:01:05]} 14. c3 {[%clk 0:01:27]}  Nc6 {[%clk 0:00:49]} 15. Nd2 {[%clk 0:01:00]}  Qc7 {[%clk 0:00:40]} 16. Qe2 {[%clk 0:01:00]}  Na5 {[%clk 0:00:36]} 17. Rfd1 {[%clk 0:00:59]}  Rab8 {[%clk 0:00:24]} 18. Rab1 {[%clk 0:00:56]}  e6 {[%clk 0:00:24]} 19. Bg5 {[%clk 0:00:51]}  h6 {[%clk 0:00:16]} 20. Bh4 {[%clk 0:00:51]}  f5 {[%clk 0:00:16]} 21. f3 {[%clk 0:00:49]}  Nb7 {[%clk 0:00:16]} 22. Bc2 {[%clk 0:00:47]}  Nd6 {[%clk 0:00:12]} 23. Bg3 {[%clk 0:00:45]}  Nf7 {[%clk 0:00:12]} 24. Kh1 {[%clk 0:00:44]}  Rb7 {[%clk 0:00:11]} 25. Re1 {[%clk 0:00:36]}  Rfb8 {[%clk 0:00:10]} 26. b3 {[%clk 0:00:33]}  cxb3 {[%clk 0:00:10]} 27. Bxb3 {[%clk 0:00:31]}  Bxb3 {[%clk 0:00:10]} 28. Nxb3 {[%clk 0:00:29]}  Qxc3 {[%clk 0:00:09]} 29. Rbc1 {[%clk 0:00:29]}  Qb4 {[%clk 0:00:09]} 30. Qxa6 {[%clk 0:00:27]}  Qb6 {[%clk 0:00:09]} 31. Qc4 {[%clk 0:00:27]}  Ra8 {[%clk 0:00:08]} 32. Nc5 {[%clk 0:00:27]}  Re7 {[%clk 0:00:07]} 33. a4 {[%clk 0:00:25]}  f4 {[%clk 0:00:05]} 34. Bf2 {[%clk 0:00:24]}  Qa5 {[%clk 0:00:06]} 35. Qe4 {[%clk 0:00:22]}  Rae8 {[%clk 0:00:05]} 36. Qxg6 {[%clk 0:00:22]}  Rb8 {[%clk 0:00:03]} 37. Nxe6 {[%clk 0:00:20]}  Nh8 {[%clk 0:00:03]} 38. Qf5 {[%clk 0:00:19]}  Rbe8 {[%clk 0:00:04]} 39. Nxf4 {[%clk 0:00:19]}  Rf7 {[%clk 0:00:02]} 40. Qh5 {[%clk 0:00:17]}  Qxa4 {[%clk 0:00:02]} 41. Nd3 {[%clk 0:00:15]}  Qa2 {[%clk 0:00:03]} 42. Be3 {[%clk 0:00:14]}  Qd5 {[%clk 0:00:03]} 43. Nf2 {[%clk 0:00:14]}  Qe6 {[%clk 0:00:03]} 44. Ng4 {[%clk 0:00:14]}  Ref8 {[%clk 0:00:04]} 45. Bxh6 {[%clk 0:00:14]}  Re7 {[%clk 0:00:03]} 46. Bxg7 {[%clk 0:00:14]}  Kxg7 {[%clk 0:00:04]} 47. Qg5+ {[%clk 0:00:14]}  Ng6 {[%clk 0:00:04]} 48. Rxe5 {[%clk 0:00:14]}  Qd6 {[%clk 0:00:04]} 49. Rxe7+ {[%clk 0:00:14]}  Qxe7 {[%clk 0:00:05]} 50. Qxe7+ {[%clk 0:00:14]}  Nxe7 {[%clk 0:00:06]} 51. Kh2 {[%clk 0:00:14]}  Rd8 {[%clk 0:00:06]} 52. Rc7 {[%clk 0:00:15]}  Kf8 {[%clk 0:00:07]} 53. h4 {[%clk 0:00:14]}  Rd2 {[%clk 0:00:07]} 54. Ne5 {[%clk 0:00:15]}  Nd5 {[%clk 0:00:06]} 55. Rd7 {[%clk 0:00:13]}  Ke8 {[%clk 0:00:06]} 56. h5 {[%clk 0:00:13]} 1-0


[Site "https://www.chess.com"]

[Event "Titled Tuesday Blitz January 31 Early 2023"]
[White "Colas, Joshua"]
[Black "Caruana, Fabiano"]
[WhiteFideId "2044447"]
[BlackFideId "2020009"]
[WhiteElo "2342"]
[BlackElo "2764"]
[Result "0-1"]
[Round "01"]
[TimeControl "180+2"]
[Date "2023.01.31"]
[WhiteClock "0:00:03"]
[BlackClock "0:00:40"]

1. Nf3 {[%clk 0:02:57]}  g6 {[%clk 0:02:58]} 2. d4 {[%clk 0:02:54]}  Bg7 {[%clk 0:02:58]} 3. e3 {[%clk 0:02:53]}  Nf6 {[%clk 0:02:58]} 4. Be2 {[%clk 0:02:53]}  O-O {[%clk 0:02:59]} 5. O-O {[%clk 0:02:54]}  b6 {[%clk 0:02:59]} 6. b3 {[%clk 0:02:54]}  Bb7 {[%clk 0:02:59]} 7. Bb2 {[%clk 0:02:55]}  e6 {[%clk 0:02:59]} 8. c4 {[%clk 0:02:55]}  d6 {[%clk 0:02:54]} 9. Nc3 {[%clk 0:02:55]}  Nbd7 {[%clk 0:02:54]} 10. Qc2 {[%clk 0:02:54]}  c5 {[%clk 0:02:54]} 11. Rad1 {[%clk 0:02:51]}  Qe7 {[%clk 0:02:54]} 12. dxc5 {[%clk 0:02:49]}  Nxc5 {[%clk 0:02:52]} 13. Nd4 {[%clk 0:02:39]}  Rfd8 {[%clk 0:02:43]} 14. Bf3 {[%clk 0:02:39]}  Bxf3 {[%clk 0:02:41]} 15. Nxf3 {[%clk 0:02:39]}  Rac8 {[%clk 0:02:41]} 16. Rd2 {[%clk 0:02:31]}  a6 {[%clk 0:02:36]} 17. Rfd1 {[%clk 0:02:30]}  b5 {[%clk 0:02:35]} 18. b4 {[%clk 0:02:16]}  Nb7 {[%clk 0:02:33]} 19. cxb5 {[%clk 0:02:14]}  axb5 {[%clk 0:02:32]} 20. Qd3 {[%clk 0:02:11]}  d5 {[%clk 0:02:32]} 21. Nxb5 {[%clk 0:01:59]}  Qxb4 {[%clk 0:02:28]} 22. Nbd4 {[%clk 0:01:17]}  Ne4 {[%clk 0:02:19]} 23. Rc2 {[%clk 0:01:12]}  Nbc5 {[%clk 0:02:08]} 24. Qe2 {[%clk 0:01:06]}  Na4 {[%clk 0:02:01]} 25. Nc6 {[%clk 0:00:59]}  Rxc6 {[%clk 0:01:59]} 26. Rxc6 {[%clk 0:00:53]}  Nxb2 {[%clk 0:01:46]} 27. Rdc1 {[%clk 0:00:46]}  Nc4 {[%clk 0:01:39]} 28. Nd4 {[%clk 0:00:40]}  Bxd4 {[%clk 0:01:21]} 29. exd4 {[%clk 0:00:40]}  Nc3 {[%clk 0:01:21]} 30. Qc2 {[%clk 0:00:31]}  Nb5 {[%clk 0:01:20]} 31. Rb1 {[%clk 0:00:28]}  Qa5 {[%clk 0:00:44]} 32. Rc5 {[%clk 0:00:20]}  Nca3 {[%clk 0:00:43]} 33. Rcxb5 {[%clk 0:00:03]}  Qxb5 {[%clk 0:00:40]} 0-1


[Site "https://www.chess.com"]

[Event "Titled Tuesday Blitz January 31 Early 2023"]
[White "Taichman, Ori"]
[Black "Kollars, Dmitrij"]
[WhiteFideId "2804069"]
[BlackFideId "12909572"]
[WhiteElo "2299"]
[BlackElo "2607"]
[Result "0-1"]
[Round "01"]
[TimeControl "180+2"]
[Date "2023.01.31"]
[WhiteClock "0:00:56"]
[BlackClock "0:00:43"]

1. e4 {[%clk 0:02:59]}  c6 {[%clk 0:02:19]} 2. d4 {[%clk 0:02:58]}  d5 {[%clk 0:02:19]} 3. e5 {[%clk 0:02:58]}  Bf5 {[%clk 0:02:19]} 4. h4 {[%clk 0:02:58]}  h5 {[%clk 0:02:17]} 5. Bd3 {[%clk 0:02:58]}  Bxd3 {[%clk 0:02:16]} 6. Qxd3 {[%clk 0:02:59]}  Qa5+ {[%clk 0:02:17]} 7. Nd2 {[%clk 0:02:59]}  e6 {[%clk 0:02:16]} 8. c4 {[%clk 0:02:55]}  Nh6 {[%clk 0:02:14]} 9. Nf3 {[%clk 0:02:52]}  Nf5 {[%clk 0:02:13]} 10. O-O {[%clk 0:02:52]}  Be7 {[%clk 0:02:14]} 11. g3 {[%clk 0:02:32]}  O-O {[%clk 0:02:11]} 12. c5 {[%clk 0:02:28]}  b6 {[%clk 0:02:08]} 13. b4 {[%clk 0:02:25]}  Qxb4 {[%clk 0:02:03]} 14. Ba3 {[%clk 0:02:25]}  Qa4 {[%clk 0:02:01]} 15. cxb6 {[%clk 0:02:25]}  axb6 {[%clk 0:01:57]} 16. Bxe7 {[%clk 0:02:23]}  Nxe7 {[%clk 0:01:58]} 17. Ng5 {[%clk 0:02:14]}  Nf5 {[%clk 0:01:57]} 18. Nb3 {[%clk 0:02:10]}  Nd7 {[%clk 0:01:56]} 19. f3 {[%clk 0:02:10]}  c5 {[%clk 0:01:51]} 20. g4 {[%clk 0:02:09]}  c4 {[%clk 0:01:51]} 21. Qb1 {[%clk 0:02:05]}  cxb3 {[%clk 0:01:50]} 22. gxf5 {[%clk 0:02:05]}  Qxd4+ {[%clk 0:01:50]} 23. Kg2 {[%clk 0:02:01]}  Qxh4 {[%clk 0:01:37]} 24. Nh3 {[%clk 0:01:31]}  Rxa2+ {[%clk 0:01:33]} 25. Rxa2 {[%clk 0:01:29]}  bxa2 {[%clk 0:01:34]} 26. Qxa2 {[%clk 0:01:28]}  Nxe5 {[%clk 0:01:34]} 27. fxe6 {[%clk 0:01:26]}  fxe6 {[%clk 0:01:35]} 28. Qe2 {[%clk 0:01:24]}  Qf6 {[%clk 0:01:32]} 29. f4 {[%clk 0:01:24]}  Ng4 {[%clk 0:01:27]} 30. Ng5 {[%clk 0:01:24]}  Rc8 {[%clk 0:01:19]} 31. Ra1 {[%clk 0:01:13]}  Rc2 {[%clk 0:00:48]} 32. Ra8+ {[%clk 0:01:13]}  Qf8 {[%clk 0:00:48]} 33. Rxf8+ {[%clk 0:01:13]}  Kxf8 {[%clk 0:00:49]} 34. Nxe6+ {[%clk 0:01:13]}  Kg8 {[%clk 0:00:49]} 35. Qxc2 {[%clk 0:01:09]}  Ne3+ {[%clk 0:00:49]} 36. Kf2 {[%clk 0:01:08]}  Nxc2 {[%clk 0:00:50]} 37. Nc7 {[%clk 0:01:03]}  d4 {[%clk 0:00:49]} 38. Ke2 {[%clk 0:01:02]}  Ne3 {[%clk 0:00:45]} 39. Ne6 {[%clk 0:00:58]}  Nf5 {[%clk 0:00:45]} 40. Kd3 {[%clk 0:00:59]}  h4 {[%clk 0:00:44]} 41. Ng5 {[%clk 0:00:56]}  b5 {[%clk 0:00:43]} 42. Ke4 {[%clk 0:00:56]}  g6 {[%clk 0:00:43]} 0-1


[Site "https://www.chess.com"]

[Event "Titled Tuesday Blitz January 31 Early 2023"]
[White "Bluebaum, Matthias"]
[Black "Garv Gaur"]
[WhiteFideId "24651516"]
[BlackFideId "45030839"]
[WhiteElo "2669"]
[BlackElo "2006"]
[Result "0-1"]
[Round "01"]
[TimeControl "180+2"]
[Date "2023.01.31"]
[WhiteClock "0:00:18"]
[BlackClock "0:00:44"]

1. d4 {[%clk 0:03:00]}  Nf6 {[%clk 0:02:50]} 2. c4 {[%clk 0:03:01]}  e6 {[%clk 0:02:49]} 3. Nc3 {[%clk 0:03:01]}  d5 {[%clk 0:02:48]} 4. cxd5 {[%clk 0:03:02]}  exd5 {[%clk 0:02:48]} 5. Bg5 {[%clk 0:03:02]}  Be7 {[%clk 0:02:47]} 6. e3 {[%clk 0:03:02]}  h6 {[%clk 0:02:41]} 7. Bf4 {[%clk 0:03:02]}  O-O {[%clk 0:02:41]} 8. Bd3 {[%clk 0:03:03]}  Bd6 {[%clk 0:02:41]} 9. Nge2 {[%clk 0:02:59]}  Re8 {[%clk 0:02:40]} 10. h3 {[%clk 0:02:58]}  a6 {[%clk 0:02:34]} 11. O-O {[%clk 0:02:57]}  c5 {[%clk 0:02:31]} 12. dxc5 {[%clk 0:02:44]}  Bxc5 {[%clk 0:02:30]} 13. Rc1 {[%clk 0:02:45]}  Bd6 {[%clk 0:02:29]} 14. Bb1 {[%clk 0:02:38]}  Be6 {[%clk 0:02:23]} 15. Na4 {[%clk 0:02:23]}  Bxf4 {[%clk 0:01:41]} 16. Nxf4 {[%clk 0:02:24]}  Nbd7 {[%clk 0:01:41]} 17. Qd4 {[%clk 0:02:14]}  Rc8 {[%clk 0:01:38]} 18. Nxe6 {[%clk 0:02:02]}  fxe6 {[%clk 0:01:30]} 19. Bg6 {[%clk 0:02:02]}  Rf8 {[%clk 0:01:26]} 20. Rfd1 {[%clk 0:02:02]}  Qe7 {[%clk 0:01:25]} 21. Nb6 {[%clk 0:01:55]}  Rxc1 {[%clk 0:01:20]} 22. Rxc1 {[%clk 0:01:55]}  e5 {[%clk 0:01:20]} 23. Nxd5 {[%clk 0:01:55]}  Qe6 {[%clk 0:01:13]} 24. Nxf6+ {[%clk 0:01:53]}  Rxf6 {[%clk 0:01:12]} 25. Rc8+ {[%clk 0:01:36]}  Nf8 {[%clk 0:01:12]} 26. Qb4 {[%clk 0:01:36]}  Qxc8 {[%clk 0:01:09]} 27. Be4 {[%clk 0:01:29]}  Qd7 {[%clk 0:01:05]} 28. Qc5 {[%clk 0:01:22]}  Qd6 {[%clk 0:01:04]} 29. Qc4+ {[%clk 0:01:21]}  Kh8 {[%clk 0:01:02]} 30. Bxb7 {[%clk 0:01:18]}  Qd1+ {[%clk 0:01:02]} 31. Kh2 {[%clk 0:01:19]}  Rxf2 {[%clk 0:01:02]} 32. Qc5 {[%clk 0:01:04]}  Rf1 {[%clk 0:00:52]} 33. Bxa6 {[%clk 0:00:53]}  Rh1+ {[%clk 0:00:52]} 34. Kg3 {[%clk 0:00:53]}  Qe1+ {[%clk 0:00:51]} 35. Kg4 {[%clk 0:00:54]}  Qf2 {[%clk 0:00:46]} 36. Bb7 {[%clk 0:00:50]}  h5+ {[%clk 0:00:43]} 37. Kg5 {[%clk 0:00:46]}  Qf6+ {[%clk 0:00:43]} 38. Kxh5 {[%clk 0:00:46]}  Qf5+ {[%clk 0:00:43]} 39. Kh4 {[%clk 0:00:47]}  Ng6+ {[%clk 0:00:44]} 40. Kg3 {[%clk 0:00:46]}  Qg5+ {[%clk 0:00:44]} 41. Kf3 {[%clk 0:00:33]}  e4+ {[%clk 0:00:43]} 42. Bxe4 {[%clk 0:00:30]}  Qxc5 {[%clk 0:00:44]} 43. Bxg6 {[%clk 0:00:31]}  Re1 {[%clk 0:00:43]} 44. e4 {[%clk 0:00:21]}  Rf1+ {[%clk 0:00:43]} 45. Kg4 {[%clk 0:00:20]}  Qe3 {[%clk 0:00:43]} 46. Bf5 {[%clk 0:00:18]}  Rf4+ {[%clk 0:00:42]} 47. Kh5 {[%clk 0:00:18]}  Qe2+ {[%clk 0:00:42]} 48. Kg5 {[%clk 0:00:18]}  Rxf5+ {[%clk 0:00:41]} 49. exf5 {[%clk 0:00:19]}  Qxg2+ {[%clk 0:00:42]} 50. Kf4 {[%clk 0:00:19]}  Qxb2 {[%clk 0:00:43]} 51. h4 {[%clk 0:00:18]}  Qxa2 {[%clk 0:00:43]} 52. Kg4 {[%clk 0:00:18]}  Qc4+ {[%clk 0:00:43]} 53. Kh5 {[%clk 0:00:18]}  Qe2+ {[%clk 0:00:43]} 54. Kg5 {[%clk 0:00:19]}  Qe7+ {[%clk 0:00:43]} 55. Kh5 {[%clk 0:00:18]}  Kh7 {[%clk 0:00:43]} 56. Kg4 {[%clk 0:00:17]}  Qe4+ {[%clk 0:00:43]} 57. Kg5 {[%clk 0:00:17]}  Qe3+ {[%clk 0:00:44]} 58. Kh5 {[%clk 0:00:17]}  Qf3+ {[%clk 0:00:43]} 59. Kg5 {[%clk 0:00:17]}  Qg3+ {[%clk 0:00:43]} 60. Kh5 {[%clk 0:00:18]}  g6+ {[%clk 0:00:44]} 61. fxg6+ {[%clk 0:00:18]}  Qxg6# {[%clk 0:00:44]} 0-1


[Site "https://www.chess.com"]

[Event "Titled Tuesday Blitz January 31 Early 2023"]
[White "Bethke, Richard"]
[Black "Bortnyk, Olexandr"]
[WhiteFideId "12959243"]
[BlackFideId "14120828"]
[WhiteElo "2382"]
[BlackElo "2605"]
[Result "0-1"]
[Round "01"]
[TimeControl "180+2"]
[Date "2023.01.31"]
[WhiteClock "0:00:02"]
[BlackClock "0:01:07"]

1. e4 {[%clk 0:03:00]}  Nf6 {[%clk 0:02:55]} 2. Nc3 {[%clk 0:02:54]}  d5 {[%clk 0:02:50]} 3. e5 {[%clk 0:02:54]}  Nfd7 {[%clk 0:02:50]} 4. d4 {[%clk 0:02:50]}  c5 {[%clk 0:02:41]} 5. e6 {[%clk 0:01:57]}  fxe6 {[%clk 0:02:39]} 6. Nf3 {[%clk 0:01:57]}  Nc6 {[%clk 0:02:39]} 7. Bb5 {[%clk 0:01:53]}  g6 {[%clk 0:02:37]} 8. Bxc6 {[%clk 0:01:38]}  bxc6 {[%clk 0:02:37]} 9. Qe2 {[%clk 0:01:38]}  Bg7 {[%clk 0:02:34]} 10. Be3 {[%clk 0:01:35]}  cxd4 {[%clk 0:02:28]} 11. Bxd4 {[%clk 0:01:33]}  Nf6 {[%clk 0:02:20]} 12. Ng5 {[%clk 0:01:09]}  Qd6 {[%clk 0:02:13]} 13. Be5 {[%clk 0:01:00]}  Qb4 {[%clk 0:02:11]} 14. a3 {[%clk 0:00:59]}  Qb6 {[%clk 0:02:06]} 15. O-O {[%clk 0:00:44]}  h6 {[%clk 0:02:01]} 16. Nxe6 {[%clk 0:00:40]}  Bxe6 {[%clk 0:01:56]} 17. Bxf6 {[%clk 0:00:40]}  Bxf6 {[%clk 0:01:54]} 18. Qxe6 {[%clk 0:00:40]}  Kf8 {[%clk 0:01:50]} 19. Rfe1 {[%clk 0:00:23]}  Kg7 {[%clk 0:01:49]} 20. b4 {[%clk 0:00:17]}  Rhf8 {[%clk 0:01:47]} 21. Na4 {[%clk 0:00:16]}  Qc7 {[%clk 0:01:36]} 22. Rad1 {[%clk 0:00:15]}  Qf4 {[%clk 0:01:16]} 23. Nc5 {[%clk 0:00:13]}  Bh4 {[%clk 0:01:13]} 24. Nd3 {[%clk 0:00:05]}  Qf6 {[%clk 0:01:11]} 25. Qxf6+ {[%clk 0:00:04]}  Bxf6 {[%clk 0:01:11]} 26. Re6 {[%clk 0:00:04]}  Rfc8 {[%clk 0:01:11]} 27. Rc1 {[%clk 0:00:04]}  a5 {[%clk 0:01:11]} 28. c4 {[%clk 0:00:03]}  axb4 {[%clk 0:01:12]} 29. Nxb4 {[%clk 0:00:02]}  dxc4 {[%clk 0:01:08]} 30. Nxc6 {[%clk 0:00:02]}  Kf7 {[%clk 0:01:07]} 31. Re4 {[%clk 0:00:02]}  Rxc6 {[%clk 0:01:07]} 0-1


[Site "https://www.chess.com"]

[Event "Titled Tuesday Blitz January 31 Early 2023"]
[White "Md, Imran"]
[Black "Terry, Renato"]
[WhiteFideId "25748580"]
[BlackFideId "3803457"]
[WhiteElo "2284"]
[BlackElo "2520"]
[Result "1/2-1/2"]
[Round "01"]
[TimeControl "180+2"]
[Date "2023.01.31"]
[WhiteClock "0:00:14"]
[BlackClock "0:00:20"]

1. d4 {[%clk 0:02:59]}  Nf6 {[%clk 0:02:59]} 2. c4 {[%clk 0:02:45]}  b6 {[%clk 0:02:57]} 3. Nc3 {[%clk 0:02:37]}  Bb7 {[%clk 0:02:55]} 4. f3 {[%clk 0:02:36]}  Nc6 {[%clk 0:02:54]} 5. e3 {[%clk 0:02:26]}  e5 {[%clk 0:02:52]} 6. d5 {[%clk 0:02:24]}  Ne7 {[%clk 0:02:52]} 7. Nge2 {[%clk 0:02:22]}  Ng6 {[%clk 0:02:46]} 8. h4 {[%clk 0:02:19]}  h5 {[%clk 0:02:39]} 9. e4 {[%clk 0:02:15]}  Nh7 {[%clk 0:02:27]} 10. g3 {[%clk 0:02:02]}  Bc5 {[%clk 0:02:26]} 11. a3 {[%clk 0:02:01]}  a5 {[%clk 0:02:26]} 12. Na4 {[%clk 0:01:59]}  O-O {[%clk 0:02:07]} 13. Nxc5 {[%clk 0:01:55]}  bxc5 {[%clk 0:02:08]} 14. Bh3 {[%clk 0:01:53]}  d6 {[%clk 0:02:08]} 15. Be3 {[%clk 0:01:50]}  Bc8 {[%clk 0:02:07]} 16. Bxc8 {[%clk 0:01:42]}  Qxc8 {[%clk 0:02:07]} 17. Qc2 {[%clk 0:01:34]}  f5 {[%clk 0:02:02]} 18. exf5 {[%clk 0:01:30]}  Rxf5 {[%clk 0:02:01]} 19. O-O {[%clk 0:01:24]}  Qd7 {[%clk 0:01:58]} 20. Nc3 {[%clk 0:01:21]}  Raf8 {[%clk 0:01:57]} 21. Kg2 {[%clk 0:01:20]}  Nf6 {[%clk 0:01:42]} 22. Rab1 {[%clk 0:01:07]}  e4 {[%clk 0:01:33]} 23. f4 {[%clk 0:00:56]}  Re8 {[%clk 0:01:20]} 24. b4 {[%clk 0:00:50]}  axb4 {[%clk 0:01:19]} 25. axb4 {[%clk 0:00:51]}  cxb4 {[%clk 0:01:20]} 26. Rxb4 {[%clk 0:00:51]}  Ng4 {[%clk 0:01:17]} 27. Qd2 {[%clk 0:00:49]}  Rf7 {[%clk 0:01:14]} 28. c5 {[%clk 0:00:46]}  dxc5 {[%clk 0:01:07]} 29. Bxc5 {[%clk 0:00:34]}  e3 {[%clk 0:01:05]} 30. Qe2 {[%clk 0:00:33]}  Qf5 {[%clk 0:01:03]} 31. Rc4 {[%clk 0:00:30]}  Nf2 {[%clk 0:00:54]} 32. Rxf2 {[%clk 0:00:28]}  exf2 {[%clk 0:00:54]} 33. Qxe8+ {[%clk 0:00:27]}  Kh7 {[%clk 0:00:54]} 34. Bxf2 {[%clk 0:00:24]}  Re7 {[%clk 0:00:54]} 35. Qa4 {[%clk 0:00:20]}  Qg4 {[%clk 0:00:54]} 36. Kh2 {[%clk 0:00:18]}  Qf5 {[%clk 0:00:37]} 37. Qd1 {[%clk 0:00:17]}  Ne5 {[%clk 0:00:37]} 38. fxe5 {[%clk 0:00:12]}  Qxf2+ {[%clk 0:00:38]} 39. Kh1 {[%clk 0:00:12]}  Rxe5 {[%clk 0:00:38]} 40. Qd3+ {[%clk 0:00:10]}  Kh8 {[%clk 0:00:34]} 41. Re4 {[%clk 0:00:11]}  Qf5 {[%clk 0:00:24]} 42. Qe2 {[%clk 0:00:11]}  Qh3+ {[%clk 0:00:24]} 43. Kg1 {[%clk 0:00:10]}  Qxg3+ {[%clk 0:00:24]} 44. Kf1 {[%clk 0:00:11]}  Qxc3 {[%clk 0:00:24]} 45. Rxe5 {[%clk 0:00:11]}  Qh3+ {[%clk 0:00:23]} 46. Ke1 {[%clk 0:00:10]}  Qxh4+ {[%clk 0:00:23]} 47. Kd1 {[%clk 0:00:11]}  Qd4+ {[%clk 0:00:23]} 48. Kc2 {[%clk 0:00:12]}  Qa4+ {[%clk 0:00:23]} 49. Kd2 {[%clk 0:00:12]}  Qd4+ {[%clk 0:00:23]} 50. Ke1 {[%clk 0:00:12]}  Qg1+ {[%clk 0:00:22]} 51. Kd2 {[%clk 0:00:13]}  Qd4+ {[%clk 0:00:22]} 52. Kc1 {[%clk 0:00:13]}  Qc3+ {[%clk 0:00:21]} 53. Kd1 {[%clk 0:00:13]}  Qa1+ {[%clk 0:00:20]} 54. Kd2 {[%clk 0:00:14]}  Qd4+ {[%clk 0:00:20]} 1/2-1/2


[Site "https://www.chess.com"]

[Event "Titled Tuesday Blitz January 31 Early 2023"]
[White "Cella, Glaucio Dalla Cortt"]
[Black "Sanal, Vahap"]
[WhiteFideId "2119455"]
[BlackFideId "6300545"]
[WhiteElo "1894"]
[BlackElo "2600"]
[Result "0-1"]
[Round "01"]
[TimeControl "180+2"]
[Date "2023.01.31"]
[WhiteClock "0:00:20"]
[BlackClock "0:01:16"]

1. e4 {[%clk 0:02:36]}  c5 {[%clk 0:02:59]} 2. Nf3 {[%clk 0:02:37]}  e6 {[%clk 0:03:00]} 3. c3 {[%clk 0:02:37]}  d5 {[%clk 0:03:00]} 4. exd5 {[%clk 0:02:38]}  exd5 {[%clk 0:03:01]} 5. Bb5+ {[%clk 0:02:38]}  Bd7 {[%clk 0:02:58]} 6. Qe2+ {[%clk 0:02:38]}  Be7 {[%clk 0:02:56]} 7. O-O {[%clk 0:02:38]}  Nf6 {[%clk 0:02:49]} 8. Bxd7+ {[%clk 0:02:33]}  Nbxd7 {[%clk 0:02:47]} 9. Re1 {[%clk 0:02:34]}  Nf8 {[%clk 0:02:33]} 10. d4 {[%clk 0:02:30]}  Ne6 {[%clk 0:02:21]} 11. Qb5+ {[%clk 0:02:29]}  Qd7 {[%clk 0:02:21]} 12. Qxd7+ {[%clk 0:02:27]}  Nxd7 {[%clk 0:02:22]} 13. Be3 {[%clk 0:02:17]}  O-O {[%clk 0:02:14]} 14. dxc5 {[%clk 0:02:12]}  Ndxc5 {[%clk 0:02:13]} 15. Nd4 {[%clk 0:02:06]}  Bf6 {[%clk 0:02:07]} 16. Nxe6 {[%clk 0:02:02]}  Nxe6 {[%clk 0:02:06]} 17. Nd2 {[%clk 0:01:59]}  d4 {[%clk 0:02:07]} 18. cxd4 {[%clk 0:01:58]}  Nxd4 {[%clk 0:02:08]} 19. Bxd4 {[%clk 0:01:51]}  Bxd4 {[%clk 0:02:08]} 20. Rab1 {[%clk 0:01:47]}  Rac8 {[%clk 0:02:08]} 21. Nf3 {[%clk 0:01:45]}  Bb6 {[%clk 0:02:08]} 22. Re2 {[%clk 0:01:43]}  Rfd8 {[%clk 0:02:08]} 23. g3 {[%clk 0:01:38]}  f6 {[%clk 0:02:01]} 24. h4 {[%clk 0:00:36]}  Kf7 {[%clk 0:01:54]} 25. Kg2 {[%clk 0:00:37]}  Rd5 {[%clk 0:01:54]} 26. b4 {[%clk 0:00:33]}  h5 {[%clk 0:01:47]} 27. Rbb2 {[%clk 0:00:34]}  Rc4 {[%clk 0:01:45]} 28. Nd2 {[%clk 0:00:29]}  Rc6 {[%clk 0:01:37]} 29. Ne4 {[%clk 0:00:26]}  a6 {[%clk 0:01:33]} 30. a4 {[%clk 0:00:25]}  Ba7 {[%clk 0:01:32]} 31. b5 {[%clk 0:00:24]}  axb5 {[%clk 0:01:31]} 32. axb5 {[%clk 0:00:24]}  Re6 {[%clk 0:01:30]} 33. b6 {[%clk 0:00:21]}  Bb8 {[%clk 0:01:17]} 34. Red2 {[%clk 0:00:21]}  Rxd2 {[%clk 0:01:16]} 35. Nxd2 {[%clk 0:00:21]}  Be5 {[%clk 0:01:16]} 36. Nf3 {[%clk 0:00:20]}  Bxb2 {[%clk 0:01:16]} 0-1


[Site "https://www.chess.com"]